bitfinex-derivatives/quotes_BTCF0:USTF0_20250814
["timestamp","ask_amount","ask_price","bid_price","bid_amount"]
[1755192637966,1.43947495,118260.0,118250.0,0.5873718]
[1755192638872,0.93885222,118260.0,118250.0,0.6058985]
[1755192639077,1.43947495,118260.0,118250.0,0.5213718]
[1755192639572,0.24077,118250.0,118240.0,0.08170526]
[1755192639775,0.7312127,118240.0,118230.0,0.285211]
[1755192640077,1.59263543,118240.0,118230.0,1.117021]
[1755192640375,1.59263543,118240.0,118230.0,1.02963714]
[1755192640376,1.15286463,118240.0,118230.0,1.02963714]
[1755192640570,1.17137255,118240.0,118230.0,0.20067]
[1755192640776,0.562141,118230.0,118220.0,0.21756765]
[1755192640979,1.02943189,118230.0,118220.0,1.11575575]
[1755192641371,1.02943189,118230.0,118220.0,0.01689765]
[1755192641674,1.53005462,118230.0,118220.0,1.13093357]
[1755192641875,1.02943189,118230.0,118220.0,1.13093357]
[1755192642176,1.02943189,118230.0,118220.0,1.13493357]
[1755192642575,1.02943189,118230.0,118220.0,1.05038547]
[1755192642777,1.53005462,118230.0,118220.0,1.05038547]
[1755192642979,1.53005462,118230.0,118220.0,1.13493367]
[1755192643481,1.60975649,118230.0,118220.0,1.13793367]
[1755192643680,1.10913376,118230.0,118220.0,1.13793367]
[1755192643979,1.0178576,118230.0,118220.0,1.15610367]
[1755192646579,1.0178576,118230.0,118220.0,1.13793367]
[1755192647874,1.0178576,118230.0,118220.0,1.27843367]
[1755192648881,1.0178576,118230.0,118220.0,1.29660367]
[1755192649368,0.6570576,118230.0,118220.0,1.29660367]
[1755192649573,1.00259497,118230.0,118220.0,1.29660367]
[1755192649983,0.64179497,118230.0,118220.0,1.29660367]
[1755192650279,0.16419497,118230.0,118220.0,1.7972264]
[1755192650587,0.15325396,118230.0,118220.0,2.1580264]
[1755192651974,0.10338396,118230.0,118220.0,2.1580264]
[1755192652382,0.01884296,118230.0,118220.0,2.1580264]
[1755192652579,0.10338396,118230.0,118220.0,2.1580264]
[1755192653674,0.01884296,118230.0,118220.0,2.1580264]
[1755192654582,0.06821296,118230.0,118220.0,2.1580264]
[1755192654978,0.06821296,118230.0,118220.0,1.65740367]
[1755192655178,0.15275396,118230.0,118220.0,1.65740367]
[1755192655384,0.15275396,118230.0,118220.0,2.1580264]
[1755192655686,0.15275396,118230.0,118220.0,1.7972264]
[1755192655880,0.50429396,118230.0,118220.0,1.29656367]
[1755192656181,0.57773396,118230.0,118220.0,1.29656367]
[1755192656371,0.31628397,118230.0,118220.0,2.1579864]
[1755192656572,0.01884296,118230.0,118220.0,2.1579864]
[1755192657490,0.06821296,118230.0,118220.0,2.1579864]
[1755192657873,0.15275396,118230.0,118220.0,2.1579864]
[1755192658092,0.06821296,118230.0,118220.0,2.1579864]
[1755192658382,0.56693591,118240.0,118230.0,0.303381]
[1755192658585,0.70423591,118240.0,118230.0,0.664181]
[1755192658972,0.6434249,118240.0,118230.0,0.664181]
[1755192659780,0.6434249,118240.0,118230.0,0.666181]
[1755192660487,0.6434249,118240.0,118230.0,0.648011]
[1755192660683,1.14404763,118240.0,118230.0,1.103651]
[1755192660989,1.20485864,118240.0,118230.0,1.103651]
[1755192661182,0.70423591,118240.0,118230.0,1.103651]
[1755192662287,0.6434249,118240.0,118230.0,1.103651]
[1755192662676,0.6434249,118240.0,118230.0,1.244151]
[1755192662881,0.6434249,118240.0,118230.0,1.262321]
[1755192663388,0.71949854,118240.0,118230.0,1.262321]
[1755192663988,0.6434249,118240.0,118230.0,1.76294373]
[1755192664190,0.70425541,118240.0,118230.0,1.262321]
[1755192665491,1.20487814,118240.0,118230.0,1.244151]
[1755192665789,0.70425541,118240.0,118230.0,1.244151]
[1755192666383,0.6434249,118240.0,118230.0,1.244151]
[1755192666793,0.6434249,118240.0,118230.0,1.043481]
[1755192666988,1.58092127,118240.0,118230.0,1.043481]
[1755192667585,1.58092127,118240.0,118230.0,0.81844]
[1755192667890,2.082344,118240.0,118230.0,0.81828]
[1755192668091,2.00627036,118240.0,118230.0,0.81828]
[1755192669085,2.00627036,118240.0,118230.0,0.81528]
[1755192669393,2.09084768,118240.0,118230.0,0.69896105]
[1755192669585,2.10472452,118240.0,118230.0,0.67863769]
[1755192669985,1.60610179,118240.0,118230.0,0.67863769]
[1755192670187,1.7117617,118240.0,118230.0,0.67863769]
[1755192670684,1.7147617,118240.0,118230.0,0.67863769]
[1755192671399,1.63018438,118240.0,118230.0,0.67863769]
[1755192671589,1.61630754,118240.0,118230.0,0.67863769]
[1755192671790,1.50984763,118240.0,118230.0,0.67863769]
[1755192671990,1.58584803,118240.0,118230.0,0.67863769]
[1755192672189,1.50984763,118240.0,118230.0,0.67863769]
[1755192672384,1.58583706,118240.0,118230.0,0.67863769]
[1755192672595,1.58583706,118240.0,118230.0,0.74463769]
[1755192672894,1.58583706,118240.0,118230.0,0.67863769]
[1755192673595,1.50984763,118240.0,118230.0,0.67863769]
[1755192674081,2.01047036,118240.0,118230.0,0.67863769]
[1755192674281,0.558891,118230.0,118220.0,0.8303055]
[1755192674487,1.49628909,118230.0,118220.0,0.8303055]
[1755192674995,1.42031373,118230.0,118220.0,0.8303055]
[1755192675687,1.42131373,118230.0,118220.0,0.8303055]
[1755192675887,1.49928417,118230.0,118220.0,0.8303055]
[1755192676290,0.0845481,118220.0,118210.0,0.1505529]
[1755192676498,0.0845481,118220.0,118200.0,1.5824366]
[1755192676499,0.5589053,118210.0,118200.0,1.6302666]
[1755192676692,0.98047496,118210.0,118200.0,2.4433066]
[1755192677097,0.0845553,118210.0,118200.0,2.96289933]
[1755192677292,0.1339253,118210.0,118200.0,3.32369933]
[1755192677489,0.1339253,118210.0,118200.0,3.33784024]
[1755192677793,0.1339253,118210.0,118200.0,2.83721751]
[1755192677984,0.1339253,118210.0,118200.0,3.33784024]
[1755192678296,0.1339253,118210.0,118200.0,2.83721751]
[1755192678695,0.19469496,118210.0,118200.0,2.83721751]
[1755192679299,0.43241496,118210.0,118200.0,2.83721751]
[1755192679501,0.48237496,118210.0,118200.0,2.47641751]
[1755192679694,0.24465496,118210.0,118200.0,2.47641751]
[1755192680990,0.48237496,118210.0,118200.0,2.47641751]
[1755192681793,0.61967496,118210.0,118200.0,2.47641751]
[1755192682393,0.61967496,118210.0,118200.0,2.47561751]
[1755192682699,0.5589053,118210.0,118200.0,2.33511751]
[1755192682895,1.42032803,118210.0,118200.0,1.35295311]
[1755192683198,1.48109769,118210.0,118200.0,2.14766311]
[1755192683387,1.49629847,118210.0,118200.0,0.87888]
[1755192683594,0.9197053,118210.0,118200.0,0.81288]
[1755192683787,1.42032803,118210.0,118200.0,0.8974424]
[1755192683991,1.42032803,118210.0,118200.0,0.9634424]
[1755192684398,1.42132803,118210.0,118200.0,0.85786159]
[1755192684700,1.42132803,118210.0,118200.0,0.77329919]
[1755192685295,1.52764455,118210.0,118200.0,0.67822919]
[1755192685596,0.5644695,118190.0,118180.0,0.38695256]
[1755192685895,1.42589223,118190.0,118180.0,0.21780256]
[1755192686093,1.50263108,118190.0,118180.0,0.11220256]
[1755192686298,1.50263108,118190.0,118180.0,0.82993256]
[1755192686299,1.50183108,118190.0,118180.0,0.82993256]
[1755192686799,1.50183108,118190.0,118180.0,0.91450926]
[1755192687102,1.50183108,118190.0,118180.0,0.8798]
[1755192687305,1.50183108,118190.0,118180.0,0.8138]
[1755192687993,1.50183108,118190.0,118180.0,0.9653767]
[1755192688190,1.48664346,118190.0,118180.0,0.9653767]
[1755192688408,1.48664346,118190.0,118180.0,0.8808]
[1755192688704,1.48764346,118190.0,118180.0,0.8138]
[1755192688906,1.48764346,118190.0,118180.0,0.8128]
[1755192689095,1.50283108,118190.0,118180.0,0.8128]
[1755192689808,1.50383108,118190.0,118180.0,0.8128]
[1755192690199,1.86563108,118190.0,118180.0,0.8128]
[1755192690512,0.5644839,118170.0,118160.0,1.33484293]
[1755192690697,1.50523833,118170.0,118160.0,2.067751]
[1755192691011,1.50523833,118170.0,118160.0,0.963351]
[1755192691196,1.0046156,118170.0,118160.0,0.963351]
[1755192691405,1.50523833,118170.0,118160.0,1.098021]
[1755192691604,1.0046156,118170.0,118160.0,0.897351]
[1755192691803,1.50523833,118170.0,118160.0,0.992421]
[1755192692203,1.0046156,118170.0,118160.0,1.098021]
[1755192692509,1.50523833,118170.0,118160.0,1.098021]
[1755192692897,0.10317335,118170.0,118160.0,1.098821]
[1755192693101,0.15118335,118170.0,118160.0,1.61761373]
[1755192693598,0.15118335,118170.0,118160.0,1.116991]
[1755192693803,0.06659945,118170.0,118160.0,1.117991]
[1755192694000,0.15118305,118170.0,118160.0,1.61861373]
[1755192694200,0.06659945,118170.0,118160.0,1.61861373]
[1755192694402,0.15118305,118170.0,118160.0,1.61861373]
[1755192694596,0.15118305,118170.0,118160.0,1.117191]
[1755192695003,0.21786045,118170.0,118160.0,1.117191]
[1755192695208,0.13327685,118170.0,118160.0,1.117191]
[1755192695404,0.08526685,118170.0,118160.0,2.20836383]
[1755192695709,0.01871715,118170.0,118160.0,2.35333991]
[1755192696309,0.3017327,118190.0,118180.0,0.0845765]
[1755192696310,0.2171524,118190.0,118180.0,0.0845765]
[1755192696500,0.13258,118190.0,118180.0,0.8974565]
[1755192696695,0.72323425,118210.0,118190.0,0.0845693]
[1755192697009,0.27787245,118210.0,118200.0,0.8976422]
[1755192697315,0.27787245,118210.0,118200.0,0.91170913]
[1755192697503,0.34691497,118210.0,118200.0,0.91170913]
[1755192697702,0.77880497,118210.0,118200.0,0.90970913]
[1755192698302,0.78380497,118210.0,118200.0,0.90970913]
[1755192698503,0.69924387,118210.0,118200.0,0.90970913]
[1755192698704,0.48344252,118210.0,118200.0,0.90970913]
[1755192698904,0.56799752,118210.0,118200.0,0.91070913]
[1755192699105,0.56599752,118210.0,118200.0,0.91070913]
[1755192700008,0.63349752,118210.0,118200.0,0.91070913]
[1755192700203,0.63349752,118210.0,118200.0,0.90970913]
[1755192700410,0.63349752,118210.0,118200.0,0.91170913]
[1755192701009,0.63349752,118210.0,118200.0,0.91270913]
[1755192701312,0.99429752,118210.0,118200.0,0.91270913]
[1755192701712,0.63349752,118210.0,118200.0,0.91170913]
[1755192702408,0.99429752,118210.0,118200.0,0.10062913]
[1755192702618,1.69959043,118210.0,118200.0,0.8994422]
[1755192703005,1.76113268,118210.0,118200.0,0.8994422]
[1755192703203,1.76033268,118210.0,118200.0,0.81488]
[1755192703399,1.76033268,118210.0,118200.0,0.002]
[1755192703605,2.03012807,118210.0,118200.0,0.81488]
[1755192703812,2.03012807,118210.0,118180.0,0.0845732]
[1755192703813,0.5644693,118190.0,118180.0,0.0845732]
[1755192704011,1.69138346,118190.0,118180.0,0.8980532]
[1755192704211,1.63056221,118190.0,118180.0,0.8980532]
[1755192704412,1.70658877,118190.0,118180.0,0.8980532]
[1755192704814,1.70658877,118190.0,118180.0,0.8980564]
[1755192705014,1.70658877,118190.0,118180.0,0.9030564]
[1755192705811,1.70658877,118190.0,118180.0,0.81848]
[1755192706013,1.99136221,118190.0,118180.0,0.81848]
[1755192706223,2.06738063,118190.0,118180.0,0.81848]
[1755192706819,1.36208772,118190.0,118180.0,0.81848]
[1755192707114,1.99136221,118190.0,118180.0,0.9030568]
[1755192707611,1.99136221,118190.0,118180.0,0.81848]
[1755192708419,1.99136221,118190.0,118180.0,0.9030569]
[1755192708621,2.06734084,118190.0,118180.0,0.9030569]
[1755192709019,1.99136221,118190.0,118180.0,0.81848]
[1755192709219,2.06734037,118190.0,118180.0,0.81848]
[1755192711818,2.06732734,118190.0,118180.0,0.81848]
[1755192712013,2.15194044,118190.0,118180.0,0.81848]
[1755192712323,0.564484,118170.0,118160.0,0.01739508]
[1755192712624,1.99137691,118170.0,118160.0,0.83031508]
[1755192713316,2.05214217,118170.0,118160.0,0.83031508]
[1755192713619,2.05214217,118170.0,118160.0,0.81292]
[1755192714120,0.5567883,118150.0,118140.0,0.09874432]
[1755192714423,1.62288121,118150.0,118140.0,0.91170432]
[1755192715327,0.9175883,118150.0,118140.0,0.91170432]
[1755192715927,0.9175883,118150.0,118140.0,0.91270432]
[1755192716628,0.12838,118150.0,118140.0,0.91350432]
[1755192716820,0.2172385,118160.0,118150.0,0.0845983]
[1755192717020,0.04805,118160.0,118150.0,0.0853983]
[1755192717322,0.40885,118170.0,118150.0,1.40528161]
[1755192717623,0.3608,118170.0,118160.0,0.8983512]
[1755192717822,0.917574,118170.0,118160.0,0.8975512]
[1755192718723,0.97834257,118170.0,118160.0,0.8975512]
[1755192719732,1.68363548,118170.0,118160.0,0.8975512]
[1755192720231,1.68363548,118170.0,118160.0,0.81296]
[1755192720823,0.97834257,118170.0,118160.0,0.8975512]
[1755192723525,0.99353596,118170.0,118160.0,0.8975512]
[1755192724428,1.69882887,118170.0,118160.0,0.8975512]
[1755192724628,0.99353596,118170.0,118160.0,0.8975512]
[1755192724817,1.69882887,118170.0,118160.0,0.8975512]
[1755192726231,0.99353596,118170.0,118160.0,0.8975512]
[1755192726929,0.917574,118170.0,118160.0,0.8975512]
[1755192727134,0.2787312,118160.0,118150.0,0.2537904]
[1755192727437,1.3227741,118160.0,118150.0,1.0667904]
[1755192728039,0.61748119,118160.0,118150.0,1.0667904]
[1755192728329,0.10874999,118160.0,118150.0,1.0675904]
[1755192728534,0.19334119,118160.0,118150.0,1.0685904]
[1755192728721,0.19334119,118160.0,118150.0,1.0677904]
[1755192728929,0.19334119,118160.0,118150.0,1.0687904]
[1755192729127,0.35219119,118160.0,118150.0,1.0687904]
[1755192729327,0.42334119,118160.0,118150.0,1.0687904]
[1755192729527,0.10874999,118160.0,118150.0,1.0687904]
[1755192730233,0.19334109,118160.0,118150.0,1.0687904]
[1755192730820,0.4429711,118160.0,118150.0,1.0687904]
[1755192731033,1.14826401,118160.0,118150.0,1.0687904]
[1755192731425,0.5567811,118160.0,118150.0,1.0687904]
[1755192731835,0.4856311,118160.0,118150.0,1.0687904]
[1755192732225,0.5567811,118160.0,118150.0,1.0687904]
[1755192732719,1.33803597,118160.0,118150.0,1.0687904]
[1755192733129,0.63274306,118160.0,118150.0,1.0687904]
[1755192733635,0.6176789,118160.0,118150.0,1.0687904]
[1755192734929,0.1935389,118160.0,118150.0,1.0687904]
[1755192738142,0.0608978,118160.0,118150.0,2.30495531]
[1755192738344,0.5062833,118170.0,118160.0,0.0845911]
[1755192738638,0.1935333,118170.0,118160.0,0.0845911]
[1755192739438,0.1326355,118170.0,118160.0,0.0845911]
[1755192739639,0.20859746,118170.0,118160.0,0.0845911]
[1755192740439,0.18493223,118170.0,118160.0,0.0845911]
[1755192740642,0.10897027,118170.0,118160.0,0.0845911]
[1755192741036,0.132634,118170.0,118160.0,0.0845911]
[1755192741345,0.24219,118170.0,118160.0,0.0845911]
[1755192741645,0.04805,118170.0,118160.0,0.0855911]
[1755192743339,0.04805,118170.0,118160.0,0.2260911]
[1755192743536,0.04805,118170.0,118160.0,0.0855911]
[1755192743944,0.04805,118170.0,118160.0,0.0865911]
[1755192744338,0.94265554,118180.0,118160.0,0.2557686]
[1755192744539,0.04959,118170.0,118160.0,0.3403597]
[1755192744740,0.09511444,118180.0,118170.0,0.0845841]
[1755192744947,0.07596196,118180.0,118170.0,1.15067701]
[1755192745132,0.12555196,118180.0,118170.0,1.15067701]
[1755192745737,0.04959,118180.0,118170.0,0.4453841]
[1755192745938,0.554287,118180.0,118170.0,0.4453841]
[1755192746145,0.554287,118180.0,118170.0,0.0845841]
[1755192746345,0.915087,118180.0,118170.0,0.9003441]
[1755192746540,0.134167,118180.0,118170.0,0.9003441]
[1755192746746,0.04959,118190.0,118180.0,0.084577]
[1755192747049,0.5542798,118190.0,118180.0,0.10165546]
[1755192747445,0.9150798,118190.0,118180.0,0.10165546]
[1755192748148,1.62137271,118190.0,118180.0,0.91725546]
[1755192748344,1.62237271,118190.0,118180.0,0.91725546]
[1755192748954,0.9170798,118190.0,118180.0,0.91725546]
[1755192750155,1.62237271,118190.0,118180.0,0.91725546]
[1755192750356,1.62237271,118190.0,118180.0,0.900177]
[1755192750756,0.9170798,118190.0,118180.0,0.900177]
[1755192752053,0.47171,118190.0,118180.0,0.900177]
[1755192752356,0.06286216,118190.0,118180.0,1.96626991]
[1755192752655,0.19702176,118190.0,118180.0,1.96626991]
[1755192752958,0.61714176,118190.0,118180.0,1.27788058]
[1755192753358,0.5562796,118190.0,118180.0,1.27788058]
[1755192753560,0.63224156,118190.0,118180.0,1.27788058]
[1755192753759,0.63024156,118190.0,118180.0,1.27788058]
[1755192753957,0.63024156,118190.0,118180.0,1.27888058]
[1755192754363,0.63024156,118190.0,118180.0,1.27788058]
[1755192755167,0.5542796,118190.0,118180.0,1.27788058]
[1755192756467,0.46971,118190.0,118180.0,1.27788058]
[1755192756768,0.04959,118190.0,118180.0,1.779204]
[1755192757166,0.1341596,118190.0,118180.0,1.27788058]
[1755192757470,0.5542796,118190.0,118180.0,1.27788058]
[1755192757662,0.5542796,118190.0,118180.0,1.27888058]
[1755192757863,0.5542796,118190.0,118180.0,1.27988058]
[1755192758669,0.40096,118190.0,118180.0,1.781204]
[1755192758864,0.29254,118190.0,118180.0,1.781204]
[1755192759168,0.12925,118190.0,118180.0,1.781204]
[1755192759570,0.2138196,118190.0,118180.0,1.781204]
[1755192759770,0.2138196,118190.0,118180.0,1.27888058]
[1755192759959,0.2138196,118190.0,118180.0,1.779204]
[1755192760158,0.3771096,118190.0,118180.0,1.779204]
[1755192760770,0.3771096,118190.0,118180.0,1.27988058]
[1755192760972,0.3771096,118190.0,118180.0,1.781204]
[1755192761359,0.04959,118190.0,118180.0,1.781204]
[1755192762067,0.07596196,118200.0,118180.0,2.0349301]
[1755192762267,0.16052446,118200.0,118190.0,0.58589302]
[1755192762472,0.21011446,118200.0,118190.0,0.58589302]
[1755192763070,0.37340446,118200.0,118190.0,0.58589302]
[1755192763266,0.28884196,118200.0,118190.0,0.58589302]
[1755192763466,0.37340446,118200.0,118190.0,0.58589302]
[1755192763667,0.63023446,118200.0,118190.0,0.0845696]
[1755192764264,1.13155788,118200.0,118190.0,0.0845696]
[1755192764463,1.49235788,118200.0,118190.0,0.0845696]
[1755192764663,1.49315788,118200.0,118190.0,0.0845696]
[1755192765367,1.51179554,118200.0,118190.0,0.0845696]
[1755192765569,0.5542796,118190.0,118180.0,0.61810668]
[1755192765873,1.41640302,118190.0,118180.0,1.17989568]
[1755192766172,1.41720302,118190.0,118180.0,0.83242358]
[1755192766369,1.41720302,118190.0,118180.0,0.91700038]
[1755192766571,1.52351954,118190.0,118180.0,0.91700038]
[1755192766872,1.52351954,118190.0,118180.0,0.83242358]
[1755192767073,1.52351954,118190.0,118180.0,0.91700038]
[1755192767577,1.52351954,118190.0,118180.0,0.83242358]
[1755192767974,1.52371954,118190.0,118180.0,0.91700038]
[1755192769177,1.52471954,118190.0,118180.0,0.91700038]
[1755192769473,0.9180796,118190.0,118180.0,0.91700038]
[1755192769669,1.41940302,118190.0,118180.0,0.91700038]
[1755192770179,1.41840302,118190.0,118180.0,0.91700038]
[1755192770373,1.41940302,118190.0,118180.0,0.91700038]
[1755192770786,1.41840302,118190.0,118180.0,0.91700038]
[1755192771280,0.9170796,118190.0,118180.0,0.91700038]
[1755192771976,0.9150796,118190.0,118180.0,0.91700038]
[1755192772280,0.9160796,118190.0,118180.0,0.91700038]
[1755192772882,1.41740302,118190.0,118180.0,0.91700038]
[1755192773476,1.41740302,118190.0,118180.0,0.80265791]
[1755192774079,0.9154296,118190.0,118180.0,0.80265791]
[1755192775678,0.9250496,118190.0,118180.0,0.80265791]
[1755192776177,0.9240496,118190.0,118180.0,0.80265791]
[1755192776785,0.9240496,118190.0,118180.0,0.80365791]
[1755192777377,0.5631796,118190.0,118180.0,0.820803]
[1755192777579,0.1065982,118190.0,118180.0,1.68372642]
[1755192777781,0.1561882,118190.0,118180.0,1.68372642]
[1755192777980,0.21029803,118190.0,118180.0,1.68372642]
[1755192779184,0.2407578,118190.0,118180.0,1.68372642]
[1755192779684,0.1341596,118190.0,118180.0,1.68372642]
[1755192779878,0.04959,118190.0,118180.0,1.68372642]
[1755192780385,0.1341596,118190.0,118180.0,1.68292642]
[1755192780687,0.3070696,118190.0,118180.0,1.68292642]
[1755192781189,0.3070696,118190.0,118180.0,1.94582642]
[1755192781983,0.3602986,118200.0,118180.0,1.6136517]
[1755192782187,0.04959,118190.0,118180.0,2.19955192]
[1755192782783,0.04959,118190.0,118180.0,2.34005192]
[1755192783188,0.1341596,118190.0,118180.0,2.34005192]
[1755192783380,0.21028798,118190.0,118180.0,2.34005192]
[1755192783687,0.19505421,118190.0,118180.0,2.34005192]
[1755192783886,0.11048461,118190.0,118180.0,2.34005192]
[1755192785082,0.62081421,118190.0,118180.0,2.34005192]
[1755192785575,0.5599196,118190.0,118180.0,2.34005192]
[1755192786489,0.04959,118190.0,118180.0,1.8387285]
[1755192786789,0.04959,118190.0,118180.0,2.34005192]
[1755192791186,0.1104444,118210.0,118200.0,0.2536746]
[1755192791389,0.49390944,118220.0,118210.0,0.0845553]
[1755192791599,0.06814944,118220.0,118210.0,0.58587872]
[1755192791978,4e-08,118220.0,118210.0,1.08717872]
[1755192792292,4e-08,118220.0,118210.0,2.25777872]
[1755192792488,0.04959004,118220.0,118210.0,2.25577872]
[1755192792788,0.04959004,118220.0,118210.0,2.11527872]
[1755192793187,0.05259004,118220.0,118210.0,2.11527872]
[1755192793385,0.05259004,118220.0,118210.0,2.12749925]
[1755192794286,0.05259004,118220.0,118210.0,2.12549925]
[1755192794690,0.05259004,118220.0,118210.0,2.12649925]
[1755192795289,0.04959004,118220.0,118210.0,2.12649925]
[1755192795480,0.04959004,118220.0,118210.0,1.62617583]
[1755192795685,0.04959004,118220.0,118210.0,2.12749925]
[1755192796292,0.31888814,118220.0,118210.0,1.62617583]
[1755192796590,0.23434004,118220.0,118210.0,2.94037925]
[1755192796790,0.47535004,118220.0,118210.0,2.57957925]
[1755192797092,0.55989814,118220.0,118210.0,2.94037925]
[1755192797391,0.47535,118220.0,118210.0,2.57957925]
[1755192797590,0.5598981,118220.0,118210.0,2.57957925]
[1755192799083,0.5598981,118220.0,118210.0,2.57949925]
[1755192799292,1.42282152,118220.0,118210.0,2.07817583]
[1755192799492,0.9214981,118220.0,118210.0,2.07817583]
[1755192800486,0.9206981,118220.0,118210.0,2.07817583]
[1755192802098,0.47535,118220.0,118210.0,2.57949925]
[1755192802895,0.54364261,118220.0,118210.0,2.71999925]
[1755192803292,0.6889184,118220.0,118210.0,2.21867583]
[1755192803495,0.6889184,118220.0,118210.0,2.71999925]
[1755192804498,0.6889184,118220.0,118210.0,2.21867583]
[1755192804797,0.6889184,118220.0,118210.0,2.21855583]
[1755192805299,1.19024182,118220.0,118210.0,2.21855583]
[1755192805994,0.8087084,118220.0,118210.0,2.21855583]
[1755192806194,1.0370384,118220.0,118210.0,2.21855583]
[1755192807602,0.1754703,118220.0,118210.0,2.71987925]
[1755192807897,0.1754703,118220.0,118210.0,3.08067925]
[1755192808498,0.2600185,118220.0,118210.0,3.08067925]
[1755192808699,0.1754703,118220.0,118210.0,3.08067925]
[1755192809397,0.17552422,118220.0,118210.0,2.57935583]
[1755192809596,0.17552422,118220.0,118210.0,3.08067925]
[1755192809797,0.33998242,118220.0,118210.0,3.08067925]
[1755192809998,0.68495242,118220.0,118210.0,2.21855583]
[1755192811603,0.68495242,118220.0,118210.0,2.57935583]
[1755192811803,0.68495242,118220.0,118210.0,2.71987925]
[1755192813100,0.12907422,118220.0,118210.0,2.71987925]
[1755192813405,0.12907422,118220.0,118210.0,3.08067925]
[1755192813805,0.17552422,118220.0,118210.0,3.08067925]
[1755192815798,0.06078161,118230.0,118210.0,3.51348515]
[1755192815998,0.73692281,118240.0,118220.0,0.83950502]
[1755192816301,0.73692281,118240.0,118230.0,1.39826442]
[1755192816494,0.12248014,118240.0,118230.0,1.75906442]
[1755192816894,0.5558639,118240.0,118230.0,0.896941]
[1755192817203,0.9166639,118240.0,118230.0,0.896941]
[1755192817404,0.5558639,118240.0,118230.0,0.896941]
[1755192818602,0.9166639,118240.0,118230.0,0.896941]
[1755192819508,1.41798732,118240.0,118230.0,0.896861]
[1755192819805,1.49401746,118240.0,118230.0,0.084541]
[1755192820005,1.49401746,118240.0,118230.0,0.896781]
[1755192822801,0.99269404,118240.0,118230.0,0.896781]
[1755192823198,0.281091,118230.0,118220.0,0.27100193]
[1755192823400,1.41799442,118230.0,118220.0,0.8937578]
[1755192823701,1.41799442,118230.0,118220.0,0.83649292]
[1755192824503,1.41799442,118230.0,118220.0,0.83749292]
[1755192825304,1.57019564,118230.0,118220.0,0.83749292]
[1755192826309,1.41799442,118230.0,118220.0,0.83749292]
[1755192827303,0.916671,118230.0,118220.0,0.83749292]
[1755192827507,1.41799442,118230.0,118220.0,0.83749292]
[1755192827707,1.52449192,118230.0,118220.0,0.83749292]
[1755192828005,1.41799442,118230.0,118220.0,0.81308]
[1755192828517,1.52449192,118230.0,118220.0,0.81308]
[1755192828808,1.58716242,118230.0,118220.0,0.81308]
[1755192829423,1.73936364,118230.0,118220.0,0.81308]
[1755192829607,1.57019564,118230.0,118220.0,0.78556181]
[1755192829808,1.06887222,118230.0,118220.0,0.78556181]
[1755192830109,1.57019564,118230.0,118220.0,0.78556181]
[1755192830314,1.06887222,118230.0,118220.0,0.87010991]
[1755192830514,1.06887222,118230.0,118220.0,0.78556181]
[1755192830812,1.13728754,118230.0,118220.0,0.87010991]
[1755192831009,0.98508632,118230.0,118220.0,0.87010991]
[1755192831404,0.98508632,118230.0,118220.0,0.8497895]
[1755192832614,1.13728754,118230.0,118220.0,0.8497895]
[1755192833513,1.24380046,118230.0,118220.0,0.8497895]
[1755192834311,1.09159924,118230.0,118220.0,0.8497895]
[1755192835020,1.09159924,118230.0,118220.0,0.7652414]
[1755192835515,1.09159924,118230.0,118220.0,0.8497896]
[1755192836121,1.59292266,118230.0,118220.0,0.8497896]
[1755192836414,1.59292266,118230.0,118220.0,0.7652414]
[1755192838521,0.2761253,118210.0,118200.0,0.18593018]
[1755192838821,1.50149187,118210.0,118200.0,0.99777018]
[1755192839015,1.00016845,118210.0,118200.0,0.99777018]
[1755192839821,1.00016845,118210.0,118200.0,0.99977018]
[1755192840322,1.00016845,118210.0,118200.0,1.00277018]
[1755192840529,1.52067579,118210.0,118200.0,0.005]
[1755192840728,1.80541264,118210.0,118200.0,0.81676]
[1755192841430,1.91192556,118210.0,118200.0,0.81676]
[1755192841732,1.88144533,118210.0,118200.0,0.81676]
[1755192841921,1.80541264,118210.0,118200.0,0.81676]
[1755192842117,0.1315796,118190.0,118180.0,0.01714509]
[1755192842325,1.44409563,118190.0,118180.0,0.82890509]
[1755192842526,1.52010717,118190.0,118180.0,0.82890509]
[1755192842735,0.94277221,118190.0,118180.0,1.18031189]
[1755192842934,0.94277221,118190.0,118180.0,1.22767189]
[1755192843232,1.00356675,118190.0,118180.0,1.22767189]
[1755192843427,1.00356675,118190.0,118180.0,1.23267189]
[1755192843823,1.00356675,118190.0,118180.0,1.18531189]
[1755192844021,1.00356675,118190.0,118180.0,1.10073509]
[1755192844227,1.00356675,118190.0,118180.0,1.18531189]
[1755192844433,1.00356675,118190.0,118180.0,1.18831189]
[1755192845626,1.00356675,118190.0,118180.0,1.23567189]
[1755192846218,1.00356675,118190.0,118180.0,1.24710699]
[1755192846521,1.00356675,118190.0,118180.0,1.74843041]
[1755192846718,1.00356675,118190.0,118180.0,1.24710699]
[1755192851639,0.64276675,118190.0,118180.0,1.74843041]
[1755192851836,0.64276675,118190.0,118180.0,1.24710699]
[1755192852045,1.00356675,118190.0,118180.0,1.74843041]
[1755192852433,1.00356675,118190.0,118180.0,1.24710699]
[1755192853143,1.00356675,118190.0,118180.0,1.38760699]
[1755192853441,1.00356675,118190.0,118180.0,1.24710699]
[1755192853739,0.94277221,118190.0,118180.0,1.24710699]
[1755192856043,1.00356675,118190.0,118180.0,1.24710699]
[1755192861944,1.50489017,118190.0,118180.0,0.9040168]
[1755192862146,1.50489017,118190.0,118180.0,0.81944]
[1755192862339,1.52090717,118190.0,118180.0,0.81944]
[1755192862647,1.52090717,118190.0,118180.0,0.81936]
[1755192863449,1.52010717,118190.0,118180.0,0.88360954]
[1755192863638,1.44409563,118190.0,118180.0,0.93665866]
[1755192863842,1.44409563,118190.0,118180.0,1.00543866]
[1755192864053,1.55061211,118190.0,118180.0,1.00543866]
[1755192864442,1.04928869,118190.0,118180.0,1.00543866]
[1755192864842,0.94277221,118190.0,118180.0,1.05453866]
[1755192865948,1.01887439,118190.0,118180.0,1.05453866]
[1755192866454,0.94277221,118190.0,118180.0,1.05453866]
[1755192866853,1.44409563,118190.0,118180.0,1.00543866]
[1755192867352,0.1164968,118180.0,118170.0,0.68992021]
[1755192867551,0.99519684,118180.0,118170.0,1.50120021]
[1755192868659,0.99519684,118180.0,118170.0,1.55030021]
[1755192868854,0.99519684,118180.0,118170.0,1.55330021]
[1755192869047,0.99519684,118180.0,118170.0,1.43842021]
[1755192869251,1.49652026,118180.0,118170.0,1.257634]
[1755192869450,1.42038022,118180.0,118170.0,1.257634]
[1755192869659,1.42038022,118180.0,118170.0,1.17305]
[1755192869852,1.5268967,118180.0,118170.0,1.17305]
[1755192870053,1.5268967,118180.0,118170.0,1.257634]
[1755192870353,1.42038022,118180.0,118170.0,0.901704]
[1755192870551,1.42038022,118180.0,118170.0,1.064704]
[1755192870752,1.42038022,118180.0,118170.0,0.98012]
[1755192871053,1.52703265,118180.0,118170.0,0.81712]